[Event "Titled Tuesday Blitz May 24 Late 2022"]
[White "Sapunov, Evgeny"]
[Black "Richter, Nils"]
[WhiteFideId "4126661"]
[BlackFideId "12990809"]
[WhiteElo "2470"]
[BlackElo "2243"]
[Result "1-0"]
[Round "10"]
[TimeControl "180+1"]
[Date "2022.05.24"]
[WhiteClock "0:00:19"]
[BlackClock "0:00:22"]

1. c4 {[%clk 0:02:55]}  Nf6 {[%clk 0:02:51]} 2. Nf3 {[%clk 0:02:55]}  g6 {[%clk 0:02:52]} 3. Nc3 {[%clk 0:02:54]}  Bg7 {[%clk 0:02:52]} 4. e4 {[%clk 0:02:55]}  O-O {[%clk 0:02:50]} 5. d4 {[%clk 0:02:55]}  d6 {[%clk 0:02:49]} 6. Be2 {[%clk 0:02:55]}  e5 {[%clk 0:02:49]} 7. O-O {[%clk 0:02:55]}  Bg4 {[%clk 0:02:48]} 8. d5 {[%clk 0:02:40]}  a5 {[%clk 0:02:47]} 9. Be3 {[%clk 0:02:37]}  Na6 {[%clk 0:02:45]} 10. h3 {[%clk 0:02:35]}  Bd7 {[%clk 0:02:43]} 11. Bg5 {[%clk 0:02:30]}  h6 {[%clk 0:02:41]} 12. Bh4 {[%clk 0:02:30]}  g5 {[%clk 0:02:39]} 13. Bg3 {[%clk 0:02:30]}  Nh5 {[%clk 0:02:32]} 14. Nd2 {[%clk 0:02:30]}  Nxg3 {[%clk 0:02:31]} 15. fxg3 {[%clk 0:02:30]}  f5 {[%clk 0:02:28]} 16. exf5 {[%clk 0:02:29]}  Bxf5 {[%clk 0:02:26]} 17. Nde4 {[%clk 0:02:14]}  Nc5 {[%clk 0:02:21]} 18. Bd3 {[%clk 0:02:08]}  Nxd3 {[%clk 0:02:19]} 19. Qxd3 {[%clk 0:02:08]}  Bg6 {[%clk 0:02:19]} 20. g4 {[%clk 0:02:08]}  Kh7 {[%clk 0:02:11]} 21. g3 {[%clk 0:02:05]}  Qe7 {[%clk 0:02:07]} 22. Kg2 {[%clk 0:02:04]}  c6 {[%clk 0:01:57]} 23. Rad1 {[%clk 0:01:56]}  Rxf1 {[%clk 0:01:54]} 24. Kxf1 {[%clk 0:01:54]}  Rf8+ {[%clk 0:01:53]} 25. Kg2 {[%clk 0:01:54]}  Qf7 {[%clk 0:01:50]} 26. Rf1 {[%clk 0:01:26]}  Qxf1+ {[%clk 0:01:22]} 27. Qxf1 {[%clk 0:01:26]}  Rxf1 {[%clk 0:01:22]} 28. Kxf1 {[%clk 0:01:26]}  cxd5 {[%clk 0:01:23]} 29. cxd5 {[%clk 0:01:25]}  Bf8 {[%clk 0:01:24]} 30. a4 {[%clk 0:01:20]}  Kg7 {[%clk 0:01:23]} 31. Ke2 {[%clk 0:01:20]}  Kf7 {[%clk 0:01:21]} 32. h4 {[%clk 0:01:14]}  Be7 {[%clk 0:01:18]} 33. h5 {[%clk 0:01:13]}  Bh7 {[%clk 0:01:17]} 34. Kf3 {[%clk 0:01:08]}  Ke8 {[%clk 0:01:17]} 35. Nd1 {[%clk 0:01:07]}  Kd7 {[%clk 0:01:15]} 36. Ne3 {[%clk 0:01:07]}  Bg8 {[%clk 0:01:13]} 37. Ke2 {[%clk 0:01:04]}  Bf7 {[%clk 0:01:10]} 38. Kd3 {[%clk 0:01:02]}  Bd8 {[%clk 0:01:10]} 39. Kc4 {[%clk 0:01:01]}  Kc7 {[%clk 0:00:56]} 40. Nf5 {[%clk 0:00:58]}  b5+ {[%clk 0:00:49]} 41. axb5 {[%clk 0:00:58]}  Kb6 {[%clk 0:00:49]} 42. Nfxd6 {[%clk 0:00:51]}  Bg8 {[%clk 0:00:43]} 43. Nf5 {[%clk 0:00:49]}  Bh7 {[%clk 0:00:37]} 44. Ned6 {[%clk 0:00:34]}  Bc7 {[%clk 0:00:32]} 45. Nc8+ {[%clk 0:00:31]}  Kb7 {[%clk 0:00:31]} 46. Nce7 {[%clk 0:00:31]}  e4 {[%clk 0:00:28]} 47. Kd4 {[%clk 0:00:29]}  a4 {[%clk 0:00:21]} 48. d6 {[%clk 0:00:26]}  Ba5 {[%clk 0:00:19]} 49. Kxe4 {[%clk 0:00:19]}  Bc3 {[%clk 0:00:19]} 50. bxc3 {[%clk 0:00:15]}  a3 {[%clk 0:00:20]} 51. d7 {[%clk 0:00:12]}  Kc7 {[%clk 0:00:18]} 52. Nc6 {[%clk 0:00:13]}  Kxd7 {[%clk 0:00:18]} 53. Nb4 {[%clk 0:00:13]}  Bg8 {[%clk 0:00:15]} 54. Nxh6 {[%clk 0:00:13]}  a2 {[%clk 0:00:15]} 55. Nxa2 {[%clk 0:00:13]}  Bxa2 {[%clk 0:00:16]} 56. Kf5 {[%clk 0:00:14]}  Kd6 {[%clk 0:00:16]} 57. Kxg5 {[%clk 0:00:14]}  Kc5 {[%clk 0:00:16]} 58. Nf5 {[%clk 0:00:15]}  Kxb5 {[%clk 0:00:16]} 59. Kf6 {[%clk 0:00:16]}  Kc4 {[%clk 0:00:17]} 60. g5 {[%clk 0:00:16]}  Kxc3 {[%clk 0:00:18]} 61. g6 {[%clk 0:00:17]}  Kd3 {[%clk 0:00:17]} 62. h6 {[%clk 0:00:17]}  Ke4 {[%clk 0:00:18]} 63. h7 {[%clk 0:00:17]}  Kf3 {[%clk 0:00:19]} 64. g7 {[%clk 0:00:17]}  Kg4 {[%clk 0:00:20]} 65. g8=Q+ {[%clk 0:00:18]}  Bxg8 {[%clk 0:00:18]} 66. hxg8=Q+ {[%clk 0:00:18]}  Kf3 {[%clk 0:00:18]} 67. Qg5 {[%clk 0:00:17]}  Kg2 {[%clk 0:00:18]} 68. g4 {[%clk 0:00:17]}  Kh3 {[%clk 0:00:19]} 69. Qh4+ {[%clk 0:00:17]}  Kg2 {[%clk 0:00:18]} 70. Qg3+ {[%clk 0:00:17]}  Kh1 {[%clk 0:00:18]} 71. Qb3 {[%clk 0:00:17]}  Kg2 {[%clk 0:00:18]} 72. g5 {[%clk 0:00:17]}  Kh1 {[%clk 0:00:19]} 73. Qc2 {[%clk 0:00:17]}  Kg1 {[%clk 0:00:19]} 74. g6 {[%clk 0:00:17]}  Kh1 {[%clk 0:00:20]} 75. Kg5 {[%clk 0:00:18]}  Kg1 {[%clk 0:00:21]} 76. Kg4 {[%clk 0:00:18]}  Kh1 {[%clk 0:00:21]} 77. Kg3 {[%clk 0:00:19]}  Kg1 {[%clk 0:00:22]} 78. Qc1# {[%clk 0:00:19]} 1-0


[Site "https://www.chess.com"]

[Event "Titled Tuesday Blitz May 24 Late 2022"]
[White "Seletsky, Grigory"]
[Black "Turutin, Alexander"]
[WhiteFideId "14112191"]
[BlackFideId "4180623"]
[WhiteElo "2492"]
[BlackElo "2402"]
[Result "1-0"]
[Round "10"]
[TimeControl "180+1"]
[Date "2022.05.25"]
[WhiteClock "0:00:16"]
[BlackClock "0:00:04"]

1. e4 {[%clk 0:02:56]}  c6 {[%clk 0:02:58]} 2. d4 {[%clk 0:02:54]}  d5 {[%clk 0:02:59]} 3. Nc3 {[%clk 0:02:53]}  dxe4 {[%clk 0:02:58]} 4. Nxe4 {[%clk 0:02:54]}  Nf6 {[%clk 0:02:59]} 5. Ng3 {[%clk 0:02:53]}  c5 {[%clk 0:02:58]} 6. N1e2 {[%clk 0:02:43]}  h5 {[%clk 0:02:52]} 7. h4 {[%clk 0:02:31]}  Nc6 {[%clk 0:02:45]} 8. c3 {[%clk 0:02:24]}  e5 {[%clk 0:02:23]} 9. dxe5 {[%clk 0:02:03]}  Qxd1+ {[%clk 0:02:22]} 10. Kxd1 {[%clk 0:02:04]}  Nxe5 {[%clk 0:02:19]} 11. f3 {[%clk 0:02:00]}  Bd7 {[%clk 0:01:47]} 12. Kc2 {[%clk 0:01:57]}  O-O-O {[%clk 0:01:47]} 13. Bg5 {[%clk 0:01:56]}  Bc6 {[%clk 0:01:11]} 14. Nf4 {[%clk 0:01:49]}  Be7 {[%clk 0:01:07]} 15. Nf5 {[%clk 0:01:41]}  Bf8 {[%clk 0:00:38]} 16. Re1 {[%clk 0:01:36]}  Ng6 {[%clk 0:00:24]} 17. Nxg6 {[%clk 0:01:29]}  fxg6 {[%clk 0:00:25]} 18. Ne3 {[%clk 0:01:25]}  Bd6 {[%clk 0:00:22]} 19. Bd3 {[%clk 0:01:21]}  Be8 {[%clk 0:00:19]} 20. Nc4 {[%clk 0:01:17]}  Bg3 {[%clk 0:00:19]} 21. Re2 {[%clk 0:01:15]}  Bf7 {[%clk 0:00:11]} 22. Ne5 {[%clk 0:01:14]}  Bxe5 {[%clk 0:00:10]} 23. Rxe5 {[%clk 0:01:13]}  c4 {[%clk 0:00:09]} 24. Be4 {[%clk 0:01:04]}  b6 {[%clk 0:00:07]} 25. Bxf6 {[%clk 0:00:41]}  gxf6 {[%clk 0:00:07]} 26. Re7 {[%clk 0:00:40]}  Rd7 {[%clk 0:00:07]} 27. Rxd7 {[%clk 0:00:37]}  Kxd7 {[%clk 0:00:08]} 28. Rd1+ {[%clk 0:00:37]}  Kc7 {[%clk 0:00:08]} 29. f4 {[%clk 0:00:33]}  Rd8 {[%clk 0:00:08]} 30. Rxd8 {[%clk 0:00:31]}  Kxd8 {[%clk 0:00:09]} 31. Kd2 {[%clk 0:00:31]}  Kc7 {[%clk 0:00:09]} 32. Ke3 {[%clk 0:00:32]}  Kd6 {[%clk 0:00:08]} 33. Kd4 {[%clk 0:00:32]}  b5 {[%clk 0:00:08]} 34. g3 {[%clk 0:00:28]}  a5 {[%clk 0:00:09]} 35. Bc2 {[%clk 0:00:25]}  Be8 {[%clk 0:00:08]} 36. Be4 {[%clk 0:00:22]}  Bf7 {[%clk 0:00:08]} 37. Bc2 {[%clk 0:00:21]}  b4 {[%clk 0:00:08]} 38. a3 {[%clk 0:00:18]}  bxa3 {[%clk 0:00:07]} 39. bxa3 {[%clk 0:00:18]}  Kc6 {[%clk 0:00:07]} 40. Ba4+ {[%clk 0:00:17]}  Kd6 {[%clk 0:00:07]} 41. Bb5 {[%clk 0:00:17]}  Be6 {[%clk 0:00:04]} 42. Bxc4 {[%clk 0:00:16]}  Bg4 {[%clk 0:00:04]} 43. Bd3 {[%clk 0:00:16]} 1-0


[Site "https://www.chess.com"]

[Event "Titled Tuesday Blitz May 24 Late 2022"]
[White "Skliarov, Viktor"]
[Black "Proudian, Armen"]
[WhiteFideId "14106736"]
[BlackFideId "2130734"]
[WhiteElo "2229"]
[BlackElo "2380"]
[Result "1-0"]
[Round "10"]
[TimeControl "180+1"]
[Date "2022.05.24"]
[WhiteClock "0:00:15"]
[BlackClock "0:00:03"]

1. e4 {[%clk 0:03:00]}  e5 {[%clk 0:02:59]} 2. Nc3 {[%clk 0:03:01]}  Nc6 {[%clk 0:02:58]} 3. Bc4 {[%clk 0:03:01]}  Nf6 {[%clk 0:02:58]} 4. d3 {[%clk 0:03:00]}  Bc5 {[%clk 0:02:57]} 5. a3 {[%clk 0:03:00]}  d6 {[%clk 0:02:55]} 6. h3 {[%clk 0:03:00]}  Be6 {[%clk 0:02:52]} 7. Nd5 {[%clk 0:03:00]}  Bxd5 {[%clk 0:02:43]} 8. exd5 {[%clk 0:03:01]}  Ne7 {[%clk 0:02:43]} 9. Qf3 {[%clk 0:03:01]}  h6 {[%clk 0:02:36]} 10. Ne2 {[%clk 0:03:00]}  Qd7 {[%clk 0:02:36]} 11. O-O {[%clk 0:02:56]}  Qf5 {[%clk 0:02:31]} 12. Qxf5 {[%clk 0:02:37]}  Nxf5 {[%clk 0:02:32]} 13. Ba2 {[%clk 0:02:36]}  g5 {[%clk 0:02:19]} 14. b4 {[%clk 0:02:22]}  Bb6 {[%clk 0:02:18]} 15. c4 {[%clk 0:02:22]}  Bd4 {[%clk 0:02:12]} 16. Nxd4 {[%clk 0:02:14]}  Nxd4 {[%clk 0:02:13]} 17. Bb2 {[%clk 0:02:10]}  Kd7 {[%clk 0:01:56]} 18. Rae1 {[%clk 0:02:02]}  Nf5 {[%clk 0:01:52]} 19. Bb3 {[%clk 0:01:38]}  Rag8 {[%clk 0:01:48]} 20. g3 {[%clk 0:01:16]}  h5 {[%clk 0:01:37]} 21. Kg2 {[%clk 0:01:11]}  h4 {[%clk 0:01:21]} 22. g4 {[%clk 0:01:10]}  Ne7 {[%clk 0:01:22]} 23. d4 {[%clk 0:01:00]}  e4 {[%clk 0:01:15]} 24. f3 {[%clk 0:00:51]}  Ng6 {[%clk 0:01:06]} 25. fxe4 {[%clk 0:00:40]}  Nf4+ {[%clk 0:01:07]} 26. Rxf4 {[%clk 0:00:41]}  gxf4 {[%clk 0:01:08]} 27. Kf3 {[%clk 0:00:41]}  Nh7 {[%clk 0:01:04]} 28. Rh1 {[%clk 0:00:29]}  Ng5+ {[%clk 0:01:05]} 29. Kxf4 {[%clk 0:00:29]}  f6 {[%clk 0:00:46]} 30. e5 {[%clk 0:00:19]}  fxe5+ {[%clk 0:00:40]} 31. dxe5 {[%clk 0:00:20]}  dxe5+ {[%clk 0:00:32]} 32. Bxe5 {[%clk 0:00:18]}  Rh7 {[%clk 0:00:33]} 33. Bc2 {[%clk 0:00:17]}  Rf7+ {[%clk 0:00:31]} 34. Bf5+ {[%clk 0:00:17]}  Kd8 {[%clk 0:00:32]} 35. c5 {[%clk 0:00:17]}  Rff8 {[%clk 0:00:20]} 36. Bd4 {[%clk 0:00:16]}  Nf7 {[%clk 0:00:20]} 37. Bf2 {[%clk 0:00:16]}  Rh8 {[%clk 0:00:15]} 38. Re1 {[%clk 0:00:16]}  b6 {[%clk 0:00:06]} 39. Bd4 {[%clk 0:00:16]}  Rh6 {[%clk 0:00:05]} 40. Bg7 {[%clk 0:00:16]}  Rhh8 {[%clk 0:00:03]} 41. Bf6# {[%clk 0:00:15]} 1-0


[Site "https://www.chess.com"]

[Event "Titled Tuesday Blitz May 24 Late 2022"]
[White "Vasquez Schroeder, Rodrigo"]
[Black "Ivanisevic, Ivan"]
[WhiteFideId "3400042"]
[BlackFideId "912417"]
[WhiteElo "2567"]
[BlackElo "2495"]
[Result "0-1"]
[Round "10"]
[TimeControl "180+1"]
[Date "2022.05.24"]
[WhiteClock "0:00:13"]
[BlackClock "0:00:05"]

1. e4 {[%clk 0:03:00]}  c5 {[%clk 0:02:59]} 2. Nf3 {[%clk 0:03:00]}  d6 {[%clk 0:03:00]} 3. d4 {[%clk 0:03:01]}  cxd4 {[%clk 0:03:00]} 4. Nxd4 {[%clk 0:03:01]}  Nf6 {[%clk 0:03:00]} 5. Nc3 {[%clk 0:03:02]}  Bd7 {[%clk 0:03:01]} 6. Bg5 {[%clk 0:02:58]}  e6 {[%clk 0:02:59]} 7. Be2 {[%clk 0:02:51]}  Be7 {[%clk 0:02:58]} 8. Qd2 {[%clk 0:02:50]}  a6 {[%clk 0:02:53]} 9. O-O-O {[%clk 0:02:46]}  b5 {[%clk 0:02:52]} 10. a3 {[%clk 0:02:46]}  Nc6 {[%clk 0:02:51]} 11. Kb1 {[%clk 0:02:44]}  O-O {[%clk 0:02:45]} 12. h4 {[%clk 0:02:40]}  Rb8 {[%clk 0:02:30]} 13. f3 {[%clk 0:02:29]}  b4 {[%clk 0:02:12]} 14. Nxc6 {[%clk 0:02:14]}  Bxc6 {[%clk 0:02:13]} 15. axb4 {[%clk 0:02:13]}  Qb6 {[%clk 0:02:08]} 16. Na2 {[%clk 0:02:07]}  a5 {[%clk 0:02:02]} 17. Be3 {[%clk 0:02:01]}  Qb7 {[%clk 0:02:01]} 18. c3 {[%clk 0:02:00]}  d5 {[%clk 0:01:57]} 19. e5 {[%clk 0:01:54]}  Nd7 {[%clk 0:01:56]} 20. Bd4 {[%clk 0:01:54]}  Ba4 {[%clk 0:01:51]} 21. bxa5 {[%clk 0:01:45]}  Nc5 {[%clk 0:01:39]} 22. b4 {[%clk 0:01:23]}  Nb3 {[%clk 0:01:34]} 23. Qe3 {[%clk 0:01:22]}  Nxa5 {[%clk 0:01:30]} 24. Rde1 {[%clk 0:01:14]}  Rfc8 {[%clk 0:01:26]} 25. Bd3 {[%clk 0:01:01]}  Nc6 {[%clk 0:01:15]} 26. Ka1 {[%clk 0:00:59]}  Bb3 {[%clk 0:00:59]} 27. Bb1 {[%clk 0:00:55]}  Ra8 {[%clk 0:00:55]} 28. Re2 {[%clk 0:00:54]}  Ra3 {[%clk 0:00:50]} 29. Rb2 {[%clk 0:00:52]}  Bc4 {[%clk 0:00:46]} 30. g3 {[%clk 0:00:51]}  Rca8 {[%clk 0:00:45]} 31. Rhh2 {[%clk 0:00:51]}  Qa6 {[%clk 0:00:29]} 32. f4 {[%clk 0:00:48]}  Nxb4 {[%clk 0:00:28]} 33. Bc5 {[%clk 0:00:34]}  Nxa2 {[%clk 0:00:19]} 34. Bxa3 {[%clk 0:00:30]}  Nc1 {[%clk 0:00:15]} 35. Qxc1 {[%clk 0:00:26]}  Bxa3 {[%clk 0:00:10]} 36. Ba2 {[%clk 0:00:25]}  Bxb2+ {[%clk 0:00:08]} 37. Qxb2 {[%clk 0:00:20]}  h5 {[%clk 0:00:08]} 38. Qb1 {[%clk 0:00:19]}  Qa5 {[%clk 0:00:05]} 39. Qb4 {[%clk 0:00:14]}  Qa7 {[%clk 0:00:04]} 40. Qb1 {[%clk 0:00:13]}  Bxa2 {[%clk 0:00:03]} 41. Rxa2 {[%clk 0:00:12]}  Qxa2+ {[%clk 0:00:04]} 42. Qxa2 {[%clk 0:00:12]}  Rxa2+ {[%clk 0:00:05]} 43. Kxa2 {[%clk 0:00:13]}  Kh7 {[%clk 0:00:05]} 0-1


[Site "https://www.chess.com"]

[Event "Titled Tuesday Blitz May 24 Late 2022"]
[White "Vivas Zamora, Fabian Ernesto"]
[Black "Prieto Aranguren, Alain"]
[WhiteFideId "3902480"]
[BlackFideId "2268906"]
[WhiteElo "1987"]
[BlackElo "2235"]
[Result "0-1"]
[Round "10"]
[TimeControl "180+1"]
[Date "2022.05.25"]
[WhiteClock "0:00:01"]
[BlackClock "0:00:30"]

1. c4 {[%clk 0:02:45]}  a5 {[%clk 0:02:59]} 2. Nc3 {[%clk 0:02:32]}  Na6 {[%clk 0:03:00]} 3. g3 {[%clk 0:02:31]}  h5 {[%clk 0:02:59]} 4. Bg2 {[%clk 0:02:32]}  h4 {[%clk 0:02:59]} 5. d4 {[%clk 0:02:10]}  d6 {[%clk 0:02:58]} 6. Bg5 {[%clk 0:02:09]}  h3 {[%clk 0:02:52]} 7. Bf3 {[%clk 0:02:07]}  f6 {[%clk 0:02:51]} 8. Bc1 {[%clk 0:02:00]}  e5 {[%clk 0:02:40]} 9. e4 {[%clk 0:01:57]}  Ne7 {[%clk 0:02:36]} 10. Be3 {[%clk 0:01:39]}  Nc6 {[%clk 0:02:33]} 11. d5 {[%clk 0:01:39]}  Ne7 {[%clk 0:02:31]} 12. Nb5 {[%clk 0:01:32]}  Bd7 {[%clk 0:02:27]} 13. a3 {[%clk 0:01:31]}  g6 {[%clk 0:02:22]} 14. Rc1 {[%clk 0:01:18]}  Bg7 {[%clk 0:02:22]} 15. Qd2 {[%clk 0:01:15]}  a4 {[%clk 0:02:15]} 16. Qe2 {[%clk 0:00:49]}  Bh6 {[%clk 0:02:11]} 17. Bg4 {[%clk 0:00:48]}  Bxe3 {[%clk 0:02:10]} 18. fxe3 {[%clk 0:00:49]}  Nc5 {[%clk 0:02:08]} 19. Nc3 {[%clk 0:00:37]}  f5 {[%clk 0:01:55]} 20. Bxh3 {[%clk 0:00:35]}  fxe4 {[%clk 0:01:51]} 21. Bxd7+ {[%clk 0:00:32]}  Qxd7 {[%clk 0:01:51]} 22. Rc2 {[%clk 0:00:28]}  Nf5 {[%clk 0:01:45]} 23. Qg4 {[%clk 0:00:12]}  Nd3+ {[%clk 0:01:35]} 24. Kd2 {[%clk 0:00:11]}  Kf7 {[%clk 0:01:24]} 25. Nxe4 {[%clk 0:00:10]}  Nc5 {[%clk 0:01:05]} 26. Nxc5 {[%clk 0:00:10]}  dxc5 {[%clk 0:01:06]} 27. Nf3 {[%clk 0:00:11]}  Rae8 {[%clk 0:01:02]} 28. e4 {[%clk 0:00:11]}  b5 {[%clk 0:00:49]} 29. Ng5+ {[%clk 0:00:11]}  Kg7 {[%clk 0:00:47]} 30. exf5 {[%clk 0:00:09]}  gxf5 {[%clk 0:00:47]} 31. Ne6+ {[%clk 0:00:09]}  Kf6 {[%clk 0:00:47]} 32. Qg7+ {[%clk 0:00:10]}  Qxg7 {[%clk 0:00:47]} 33. Nxg7 {[%clk 0:00:10]}  Kxg7 {[%clk 0:00:47]} 34. cxb5 {[%clk 0:00:10]}  Kf6 {[%clk 0:00:42]} 35. Rxc5 {[%clk 0:00:10]}  e4 {[%clk 0:00:43]} 36. Ke3 {[%clk 0:00:08]}  Ke5 {[%clk 0:00:39]} 37. Rxc7 {[%clk 0:00:05]}  Kxd5 {[%clk 0:00:38]} 38. Rd1+ {[%clk 0:00:03]}  Ke5 {[%clk 0:00:37]} 39. Rc5+ {[%clk 0:00:03]}  Kf6 {[%clk 0:00:37]} 40. h4 {[%clk 0:00:02]}  Rhg8 {[%clk 0:00:37]} 41. Rg1 {[%clk 0:00:02]}  Rd8 {[%clk 0:00:34]} 42. Ke2 {[%clk 0:00:01]}  Rd3 {[%clk 0:00:33]} 43. Rc3 {[%clk 0:00:01]}  Rd5 {[%clk 0:00:32]} 44. g4 {[%clk 0:00:01]}  f4 {[%clk 0:00:31]} 45. b6 {[%clk 0:00:01]}  Ke5 {[%clk 0:00:30]} 0-1


[Site "https://www.chess.com"]

[Event "Titled Tuesday Blitz May 24 Late 2022"]
[White "Winkels, Marcel"]
[Black "Jorquera, Marcelo"]
[WhiteFideId "1003887"]
[BlackFideId "3401197"]
[WhiteElo "1900"]
[BlackElo "2136"]
[Result "0-1"]
[Round "10"]
[TimeControl "180+1"]
[Date "2022.05.25"]
[WhiteClock "0:00:01"]
[BlackClock "0:00:08"]

1. e4 {[%clk 0:03:00]}  d5 {[%clk 0:02:59]} 2. exd5 {[%clk 0:03:00]}  Nf6 {[%clk 0:02:59]} 3. d4 {[%clk 0:02:58]}  Bg4 {[%clk 0:02:58]} 4. Nf3 {[%clk 0:02:53]}  Qxd5 {[%clk 0:02:57]} 5. Nc3 {[%clk 0:02:51]}  Qh5 {[%clk 0:02:44]} 6. Be3 {[%clk 0:02:48]}  Nc6 {[%clk 0:02:42]} 7. Be2 {[%clk 0:02:47]}  O-O-O {[%clk 0:02:42]} 8. Qd2 {[%clk 0:02:22]}  e5 {[%clk 0:02:35]} 9. d5 {[%clk 0:02:12]}  Bb4 {[%clk 0:02:18]} 10. dxc6 {[%clk 0:01:57]}  Rxd2 {[%clk 0:02:16]} 11. cxb7+ {[%clk 0:01:56]}  Kxb7 {[%clk 0:02:17]} 12. Bxd2 {[%clk 0:01:56]}  Rd8 {[%clk 0:01:36]} 13. h3 {[%clk 0:01:55]}  e4 {[%clk 0:01:23]} 14. Ng1 {[%clk 0:01:42]}  Bxe2 {[%clk 0:01:17]} 15. Ngxe2 {[%clk 0:01:41]}  e3 {[%clk 0:01:04]} 16. Bxe3 {[%clk 0:01:14]}  Ne4 {[%clk 0:00:59]} 17. O-O {[%clk 0:01:07]}  Nxc3 {[%clk 0:00:54]} 18. Nxc3 {[%clk 0:01:07]}  Qf5 {[%clk 0:00:41]} 19. Rfc1 {[%clk 0:00:50]}  Rd6 {[%clk 0:00:36]} 20. a3 {[%clk 0:00:43]}  Ba5 {[%clk 0:00:25]} 21. b4 {[%clk 0:00:40]}  Bb6 {[%clk 0:00:25]} 22. Re1 {[%clk 0:00:27]}  Rg6 {[%clk 0:00:24]} 23. Bxb6 {[%clk 0:00:14]}  axb6 {[%clk 0:00:23]} 24. Re3 {[%clk 0:00:13]}  Qxc2 {[%clk 0:00:18]} 25. Rd1 {[%clk 0:00:11]}  Re6 {[%clk 0:00:14]} 26. Rxe6 {[%clk 0:00:09]}  fxe6 {[%clk 0:00:14]} 27. Kf1 {[%clk 0:00:06]}  Qxc3 {[%clk 0:00:13]} 28. Ke2 {[%clk 0:00:06]}  Qxa3 {[%clk 0:00:12]} 29. Rd4 {[%clk 0:00:07]}  Qb2+ {[%clk 0:00:11]} 30. Ke3 {[%clk 0:00:06]}  Qxd4+ {[%clk 0:00:11]} 31. Kxd4 {[%clk 0:00:05]}  Kc6 {[%clk 0:00:10]} 32. Ke5 {[%clk 0:00:06]}  Kd7 {[%clk 0:00:11]} 33. f4 {[%clk 0:00:06]}  c5 {[%clk 0:00:10]} 34. bxc5 {[%clk 0:00:05]}  bxc5 {[%clk 0:00:11]} 35. g4 {[%clk 0:00:05]}  g6 {[%clk 0:00:11]} 36. h4 {[%clk 0:00:04]}  h5 {[%clk 0:00:10]} 37. gxh5 {[%clk 0:00:03]}  gxh5 {[%clk 0:00:10]} 38. f5 {[%clk 0:00:03]}  exf5 {[%clk 0:00:10]} 39. Kxf5 {[%clk 0:00:04]}  Kd6 {[%clk 0:00:09]} 40. Ke4 {[%clk 0:00:01]}  Kc6 {[%clk 0:00:07]} 41. Kd3 {[%clk 0:00:01]}  Kd5 {[%clk 0:00:08]} 0-1


[Site "https://www.chess.com"]

[Event "Titled Tuesday Blitz May 24 Late 2022"]
[White "Yanayt, Eugene"]
[Black "Stojanovski, Sandi"]
[WhiteFideId "2020165"]
[BlackFideId "1403249"]
[WhiteElo "2046"]
[BlackElo "2345"]
[Result "0-1"]
[Round "10"]
[TimeControl "180+1"]
[Date "2022.05.25"]
[WhiteClock "0:00:06"]
[BlackClock "0:00:11"]

1. Nf3 {[%clk 0:03:00]}  Nf6 {[%clk 0:03:00]} 2. c4 {[%clk 0:02:54]}  e6 {[%clk 0:03:00]} 3. g3 {[%clk 0:02:52]}  d5 {[%clk 0:03:01]} 4. d4 {[%clk 0:02:51]}  c5 {[%clk 0:02:59]} 5. dxc5 {[%clk 0:02:48]}  Bxc5 {[%clk 0:02:58]} 6. Bg2 {[%clk 0:02:48]}  O-O {[%clk 0:02:58]} 7. O-O {[%clk 0:02:46]}  Nc6 {[%clk 0:02:51]} 8. Bg5 {[%clk 0:02:43]}  d4 {[%clk 0:02:46]} 9. Nbd2 {[%clk 0:02:24]}  e5 {[%clk 0:02:32]} 10. Nb3 {[%clk 0:02:21]}  Be7 {[%clk 0:02:25]} 11. e3 {[%clk 0:02:17]}  h6 {[%clk 0:02:14]} 12. Bxf6 {[%clk 0:02:09]}  Bxf6 {[%clk 0:02:15]} 13. exd4 {[%clk 0:02:07]}  exd4 {[%clk 0:02:16]} 14. Qd3 {[%clk 0:02:03]}  g6 {[%clk 0:02:09]} 15. Rad1 {[%clk 0:01:57]}  Bf5 {[%clk 0:02:08]} 16. Qd2 {[%clk 0:01:57]}  d3 {[%clk 0:01:55]} 17. Nc5 {[%clk 0:01:47]}  Qb6 {[%clk 0:01:43]} 18. Nxd3 {[%clk 0:01:40]}  Bxd3 {[%clk 0:01:25]} 19. Qxd3 {[%clk 0:01:39]}  Qxb2 {[%clk 0:01:26]} 20. Rb1 {[%clk 0:01:32]}  Qxa2 {[%clk 0:01:24]} 21. Rxb7 {[%clk 0:01:30]}  Rad8 {[%clk 0:00:54]} 22. Qe4 {[%clk 0:01:09]}  Nd4 {[%clk 0:00:52]} 23. Nh4 {[%clk 0:01:00]}  Ne2+ {[%clk 0:00:35]} 24. Kh1 {[%clk 0:00:59]}  Rd4 {[%clk 0:00:35]} 25. Qe3 {[%clk 0:00:40]}  Bxh4 {[%clk 0:00:31]} 26. gxh4 {[%clk 0:00:39]}  Qxc4 {[%clk 0:00:30]} 27. Qxh6 {[%clk 0:00:34]}  Rxh4 {[%clk 0:00:29]} 28. Qe3 {[%clk 0:00:30]}  Nf4 {[%clk 0:00:27]} 29. Rc1 {[%clk 0:00:26]}  Nxg2 {[%clk 0:00:17]} 30. Kxg2 {[%clk 0:00:22]}  Qg4+ {[%clk 0:00:15]} 31. Kh1 {[%clk 0:00:16]}  Rh3 {[%clk 0:00:15]} 32. Rg1 {[%clk 0:00:09]}  Qxg1+ {[%clk 0:00:12]} 33. Kxg1 {[%clk 0:00:09]}  Rxe3 {[%clk 0:00:13]} 34. fxe3 {[%clk 0:00:09]}  Ra8 {[%clk 0:00:13]} 35. Rb4 {[%clk 0:00:09]}  a5 {[%clk 0:00:14]} 36. Ra4 {[%clk 0:00:09]}  Kf8 {[%clk 0:00:14]} 37. Kf2 {[%clk 0:00:10]}  Ke7 {[%clk 0:00:15]} 38. Kf3 {[%clk 0:00:10]}  Kd6 {[%clk 0:00:16]} 39. Kf4 {[%clk 0:00:11]}  Kc5 {[%clk 0:00:16]} 40. Kg5 {[%clk 0:00:11]}  Ra6 {[%clk 0:00:15]} 41. h4 {[%clk 0:00:11]}  Kb5 {[%clk 0:00:15]} 42. Ra1 {[%clk 0:00:09]}  a4 {[%clk 0:00:16]} 43. e4 {[%clk 0:00:09]}  a3 {[%clk 0:00:15]} 44. h5 {[%clk 0:00:07]}  gxh5 {[%clk 0:00:14]} 45. Kxh5 {[%clk 0:00:07]}  Kb4 {[%clk 0:00:14]} 46. Kg5 {[%clk 0:00:06]}  Kb3 {[%clk 0:00:14]} 47. e5 {[%clk 0:00:06]}  a2 {[%clk 0:00:14]} 48. Rf1 {[%clk 0:00:05]}  a1=Q {[%clk 0:00:11]} 49. Rxa1 {[%clk 0:00:05]}  Rxa1 {[%clk 0:00:12]} 50. Kf6 {[%clk 0:00:05]}  Rf1+ {[%clk 0:00:11]} 51. Ke7 {[%clk 0:00:05]}  Kc4 {[%clk 0:00:12]} 52. Kd6 {[%clk 0:00:05]}  Kd4 {[%clk 0:00:12]} 53. e6 {[%clk 0:00:05]}  Rf6 {[%clk 0:00:10]} 54. Ke7 {[%clk 0:00:05]}  Rxe6+ {[%clk 0:00:10]} 55. Kxf7 {[%clk 0:00:05]}  Ke5 {[%clk 0:00:11]} 56. Kg7 {[%clk 0:00:05]}  Rf6 {[%clk 0:00:11]} 57. Kh7 {[%clk 0:00:05]}  Kf5 {[%clk 0:00:11]} 58. Kg7 {[%clk 0:00:06]}  Kg5 {[%clk 0:00:10]} 59. Kh7 {[%clk 0:00:06]}  Rf7+ {[%clk 0:00:10]} 60. Kg8 {[%clk 0:00:06]}  Kg6 {[%clk 0:00:11]} 61. Kh8 {[%clk 0:00:06]}  Rf8# {[%clk 0:00:11]} 0-1


[Site "https://www.chess.com"]